fUST/lending_fUST_20251015
["ID","MTS","AMOUNT","RATE_DAILY","PERIOD"]
[391273216,1760460642114,-151.0,0.00029444,30]
[391273217,1760460642123,-151.0,0.00029444,30]
[391273218,1760460642132,-151.0,0.00029444,30]
[391273219,1760460642141,-205.23337,0.00029444,30]
[391273220,1760460642151,-285.055211,0.00029444,2]
[391273221,1760460642159,-285.055211,0.00029444,2]
[391273222,1760460642169,-285.055211,0.00029444,2]
[391273223,1760460642178,-151.0,0.00029444,30]
[391273224,1760460642187,-285.055211,0.00029444,2]
[391273225,1760460642197,-151.0,0.00029444,30]
[391273226,1760460642206,-151.0,0.00029444,30]
[391273227,1760460642215,-188.423895,0.00029444,30]
[391273228,1760460642224,-188.423895,0.00029444,30]
[391273229,1760460642233,-151.0,0.00029444,30]
[391273230,1760460642242,-188.423895,0.00029444,30]
[391273231,1760460642251,-188.423895,0.00029444,30]
[391273232,1760460642261,-151.0,0.00029444,30]
[391273233,1760460642270,-151.0,0.00029444,30]
[391273234,1760460642280,-2510.975485,0.00029444,30]
[391273235,1760460642289,-2510.975485,0.00029444,30]
[391273236,1760460642298,-151.0,0.00029444,30]
[391273237,1760460642309,-2510.975485,0.00029444,30]
[391273238,1760460642318,-151.0,0.00029444,30]
[391273239,1760460642328,-151.0,0.00029444,30]
[391273240,1760460642337,-2510.975485,0.00029444,30]
[391273241,1760460642348,-152.56704611,0.00029473,5]
[391273242,1760460642357,-238.517679,0.00029476,15]
[391273243,1760460642366,-250.28901,0.00029476,15]
[391273244,1760460642375,-1613.0,0.0002948,2]
[391273245,1760460642384,-22584.87,0.000295,7]
[391273246,1760460642393,-417.15472785,0.000295,7]
[391273247,1760460642403,-1552.0,0.00029515,2]
[391273248,1760460642411,-2368.058628,0.00029519,2]
[391273249,1760460642420,-600.0,0.00029521,2]
[391273250,1760460642430,-1043.15,0.00029522,2]
[391273251,1760460642439,-500.0,0.0002953,5]
[391273252,1760460642448,-500.0,0.0002953,20]
[391273253,1760460642457,-800.0,0.00029564,2]
[391273254,1760460642467,-500.0,0.00029589,30]
[391273255,1760460642476,-500.0,0.00029589,30]
[391273256,1760460642486,-500.0,0.00029589,30]
[391273257,1760460642495,-500.0,0.00029589,30]
[391273258,1760460642504,-595.1948961,0.00029589,30]
[391273259,1760460642513,-2368.058628,0.00029619,2]
[391273260,1760460642523,-800.0,0.00029638,2]
[391273261,1760460642532,-1552.0,0.00029646,2]
[391273262,1760460642541,-238.517679,0.00029667,30]
[391273263,1760460642550,-250.28901,0.00029667,30]
[391273264,1760460642560,-1552.0,0.00029714,7]
[391273265,1760460642569,-2368.058628,0.00029719,2]
[391273266,1760460642578,-1000.0,0.00029721,5]
[391273267,1760460642588,-1552.0,0.00029733,2]
[391273268,1760460642599,-1000.0,0.00029746,4]
[391273269,1760460642611,-1451.14558009,0.00029774,2]
[391273270,1760460642622,-2557.0,0.00029783,2]
[391273271,1760460642632,-238.517679,0.00029814,15]
[391273272,1760460642640,-250.28901,0.00029814,15]
[391273273,1760460642649,-2368.058628,0.00029819,2]
[391273274,1760460642659,-600.0,0.00029825,2]
[391273275,1760460642669,-20006.03981059,0.00029832,2]
[391273276,1760460642679,-1500.0,0.00029868,5]
[391273277,1760460642688,-1500.0,0.00029868,5]
[391273278,1760460642697,-1552.0,0.0002987,2]
[391273279,1760460642706,-5689.24,0.00029872,2]
[391273280,1760460642716,-684.1136437,0.00029884,2]
[391273281,1760460642726,-2736.45457479,0.00029884,2]
[391273282,1760460642735,-6150.86577049,0.00029884,2]
[391273283,1760460642744,-5049.0,0.00029884,2]
[391273284,1760460642753,-2585.03,0.000299,2]
[391273285,1760460642763,-653.74105139,0.000299,2]
[391273286,1760460642772,-1000.0,0.000299,3]
[391273287,1760460642787,-159.64,0.000299,4]
[391273288,1760460642796,-1625.489778,0.000299,3]
[391273289,1760460642805,-159.9839724,0.00029917,2]
[391273290,1760460642815,-2368.058628,0.00029919,2]
[391273291,1760460642825,-238.517679,0.00029921,2]
[391273292,1760460642834,-250.28901,0.00029921,2]
[391273293,1760460642844,-162.9892445,0.00029936,30]
[391273294,1760460642854,-588.8145586,0.00029947,30]
[391273295,1760460642864,-588.8145586,0.00029947,30]
[391273296,1760460642873,-554.3818318,0.00029947,30]
[391273297,1760460642883,-627.0433513,0.00029977,2]
[391273298,1760460642892,-781227.28717214,0.0003,9]
[391273299,1760460642973,-151.0,0.0002871,30]
[391273300,1760460642983,-151.0,0.0002871,30]
[391273301,1760460642992,-151.0,0.00029444,30]
[391273302,1760460643002,-151.0,0.00029444,30]
[391273303,1760460643012,-1043.15,0.00029696,2]
[391273304,1760460643021,-14442.15834951,0.0003,9]
[391273323,1760460643604,-151.0,0.0002871,30]
[391273324,1760460643614,-166.979486,0.00029444,30]
[391273325,1760460643624,-2632.71390756,0.0002999,10]
[391273359,1760460671165,1379.0,0.00030499,63]
[391273360,1760460689800,1398.52205375,0.00030499,65]
[391273361,1760460859948,499.99,0.00030506,120]
[391273362,1760460961766,5791.992375,0.0002849,120]
[391273365,1760461288673,4118.01,0.00030474,60]
[391273366,1760461349113,692.494291,0.00013699,2]
[391273371,1760461710316,10114.01185437,0.00025,120]
[391273415,1760461831752,-166.49807658,0.00019177,2]
[391273417,1760461831762,-133.50192342,0.00019177,2]
[391273419,1760461831805,-166.49807658,0.00019177,2]
[391273420,1760461831815,-1000.0,0.00019178,2]
[391273421,1760461831824,-1000.0,0.00019178,2]
[391273422,1760461831834,-1000.0,0.00019178,2]
[391273424,1760461831843,-1000.0,0.00019178,2]
[391273426,1760461831852,-1000.0,0.00019178,2]
[391273427,1760461831862,-570.78403441,0.00019178,2]
[391273615,1760461837664,-429.21596559,0.00019178,2]
[391273617,1760461837674,-1000.0,0.00019178,2]
[391273619,1760461837683,-199.19192341,0.00019178,2]
[391273621,1760461837693,-500.20853287,0.00019178,2]
[391273623,1760461837702,-210.63215412,0.00019178,2]
[391273625,1760461837713,-289.36784588,0.00019178,2]
[391273627,1760461837722,-500.0,0.00019178,2]
[391273629,1760461837731,-500.0,0.00019178,2]
[391273631,1760461837740,-500.0,0.00019178,2]
[391273633,1760461837750,-500.0,0.00019178,2]
[391273635,1760461837759,-471.12464822,0.00019178,2]
[391273637,1760461837768,-185.25,0.00019178,2]
[391273639,1760461837777,-501.05544168,0.00019333,2]
[391273641,1760461837786,-185.25,0.00019452,2]
[391273643,1760461837795,-300.0,0.00019561,2]
[391273645,1760461837805,-300.0,0.00019561,2]
[391273647,1760461837814,-300.0,0.00019561,2]
[391273649,1760461837823,-300.0,0.00019561,2]
[391273651,1760461837832,-300.0,0.00019561,2]
[391273653,1760461837841,-300.0,0.00019561,2]
[391273655,1760461837851,-62.73108929,0.00019561,2]
[391273658,1760461837862,-237.26891071,0.00019561,2]
[391273660,1760461837873,-300.0,0.00019561,2]
[391273662,1760461837882,-300.0,0.00019561,2]
[391273664,1760461837892,-300.0,0.00019561,2]
[391273666,1760461837901,-300.0,0.00019561,2]
[391273668,1760461837910,-300.0,0.00019561,2]
[391273670,1760461837919,-300.0,0.00019561,2]
[391273672,1760461837936,-300.0,0.00019561,2]
[391273674,1760461837946,-300.0,0.00019561,2]
[391273676,1760461837956,-600.0,0.00019561,2]
[391273677,1760461837966,-191.47278806,0.00019777,2]
[391273679,1760461837976,-1297.42,0.00019822,2]
[391273682,1760461837986,-692.494291,0.00020187,2]
[391273683,1760461837996,-356.55115888,0.0002026,2]
[391273685,1760461838005,-216.44749955,0.00020377,2]
[391273687,1760461838014,-1973.20343387,0.00020766,2]
[391273690,1760461838025,-621.63656613,0.00020766,2]
[391273692,1760461838034,-420.0,0.00020899,2]
[391273694,1760461838044,-241.42221104,0.00020977,2]
[391273696,1760461838054,-1000.0,0.00021118,2]
[391273698,1760461838063,-720.0,0.00021517,20]
[391273700,1760461838072,-266.39692252,0.00021577,2]
[391273702,1760461838081,-3892.26,0.0002171,2]
[391273704,1760461838091,-216.0,0.00021726,5]
[391273706,1760461838100,-291.37163401,0.00022177,2]
[391273708,1760461838110,-5189.69,0.00022654,2]
[391273710,1760461838126,-587.0,0.00022776,2]
[391273711,1760461838135,-316.3463455,0.00022777,2]
[391273714,1760461838146,-341.32105698,0.00023377,2]
[391273715,1760461838156,-6487.11,0.00023598,2]
[391273717,1760461838166,-864.0,0.00023668,20]
[391273719,1760461838175,-366.29576847,0.00023977,2]
[391273721,1760461838185,-357.87,0.00024,3]
[391273723,1760461838195,-4706.54,0.00024,10]
[391273725,1760461838204,-3922.12,0.00024,10]
[391273727,1760461838214,-193.09611033,0.00024009,2]
[391273729,1760461838223,-312.31899069,0.00024009,2]
[391273731,1760461838233,-95000.0,0.0002401,30]
[391273733,1760461838243,-160.0,0.0002401,30]
[391273735,1760461838252,-500.0,0.00024073,2]
[391273737,1760461838261,-500.0,0.00024073,2]
[391273739,1760461838271,-1140.79884325,0.000243,2]
[391273741,1760461838280,-160.0,0.00024365,2]
[391273743,1760461838290,-402.43064913,0.00024365,2]
[391273745,1760461838299,-1156.40492604,0.000244,2]
[391273747,1760461838309,-7784.53,0.00024541,2]
[391273749,1760461838318,-391.27047995,0.00024577,2]
[391273751,1760461838328,-1140.79884325,0.000246,2]
[391273753,1760461838337,-1156.40492604,0.000246,2]
[391273755,1760461838347,-1000.0,0.00024621,2]
[391273757,1760461838357,-1140.79884325,0.000248,2]
[391273759,1760461838367,-3427.76249128,0.000248,2]
[391273761,1760461838379,-823.0,0.00024821,2]
[391273763,1760461838390,-152.56704611,0.00024873,2]
[391273765,1760461838400,-187.91938817,0.00024873,2]
[391273767,1760461838410,-5252.99055536,0.00024873,2]
[391273769,1760461838420,-350.83161612,0.0002488,2]
[391273771,1760461838429,-11997.1687195,0.0002489,2]
[391273773,1760461838439,-1156.40492604,0.000249,2]
[391273776,1760461838449,-18067.9,0.000249,7]
[391273778,1760461838458,-343302.178911,0.000249,2]
[391273780,1760461838468,-612.79100345,0.00024973,2]
[391273782,1760461838477,-3427.76249128,0.0002498,2]
[391273784,1760461838487,-221.456,0.00024988,8]
[391273786,1760461838496,-100000.0,0.0002499,2]
[391273787,1760461838505,-1140.79884325,0.000251,2]
[391273789,1760461838514,-1156.40492604,0.000251,2]
[391273792,1760461838524,-537.05869976,0.00025168,2]
[391273793,1760461838533,-416.24519144,0.00025177,2]
[391273795,1760461838543,-1140.79884325,0.000253,2]
[391273798,1760461838553,-1156.40492604,0.000254,2]
[391273799,1760461838562,-9081.95,0.00025485,2]
[391273802,1760461838572,-3427.76249128,0.0002558,2]
[391273804,1760461838581,-85825.5447277,0.0002559,2]
[391273805,1760461838590,-1140.79884325,0.000256,2]
[391273807,1760461838599,-441.21990293,0.00025777,2]
[391273809,1760461838608,-1140.79884325,0.000258,2]
[391273811,1760461838617,-1713.88124564,0.00026017,2]
[391273813,1760461838630,-6530.23,0.00026027,2]
[391273814,1760461838639,-151.0,0.00026028,2]
[391273816,1760461838649,-151.0,0.00026028,2]
[391273818,1760461838658,-151.0,0.00026028,2]
[391273820,1760461838667,-151.0,0.00026028,2]
[391273821,1760461838676,-151.0,0.00026028,2]
[391273823,1760461838685,-151.0,0.00026028,2]
[391273825,1760461838694,-1000.0,0.00026035,20]
[391273826,1760461838703,-151.0,0.00026083,2]
[391273827,1760461838712,-1140.79884325,0.000261,2]
[391273830,1760461838722,-160.0,0.00026114,3]
[391273832,1760461838731,-350.83161611,0.00026135,2]
[391273833,1760461838740,-198.12415705,0.00026138,2]
[391273835,1760461838749,-466.19461441,0.00026377,2]
[391273837,1760461838759,-1140.79884325,0.000264,2]
[391273839,1760461838769,-10379.37,0.00026429,2]
[391273842,1760461838778,-1140.79884325,0.000266,2]
[391273843,1760461838788,-692.494291,0.00026676,2]
[391273845,1760461838797,-5252.99055535,0.00026743,2]
[391273847,1760461838807,-491.1693259,0.00026977,2]
[391273849,1760461838816,-1152.0,0.0002705,2]
[391273851,1760461838825,-165.254606,0.0002707,2]
[391273853,1760461838834,-169.262279,0.0002707,2]
[391273854,1760461838843,-166.0,0.00027205,23]
[391273855,1760461838852,-11676.79,0.00027373,2]
[391273856,1760461838862,-350.83161611,0.0002739,2]
[391273857,1760461838872,-1713.88124564,0.0002739,2]
[391273858,1760461838881,-9379.69422902,0.00027392,11]
[391273859,1760461838891,-5000.0,0.00027392,12]
[391273860,1760461839016,-5000.0,0.00027392,10]
[391273861,1760461839028,-5000.0,0.00027392,10]
[391273862,1760461839037,-5000.0,0.00027392,10]
[391273863,1760461839047,-769.37,0.00027397,2]
[391273864,1760461839056,-769.37,0.00027397,2]
[391273865,1760461839066,-769.37,0.00027397,2]
[391273866,1760461839076,-769.37,0.00027397,2]
[391273867,1760461839085,-769.37,0.00027397,2]
[391273868,1760461839094,-769.37,0.00027397,2]
[391273869,1760461839104,-769.37,0.00027397,2]
[391273871,1760461839114,-769.37,0.00027397,2]
[391273873,1760461839128,-769.37,0.00027397,2]
[391273875,1760461839138,-769.37,0.00027397,2]
[391273877,1760461839147,-769.37,0.00027397,2]
[391273878,1760461839157,-769.37,0.00027397,2]
[391273881,1760461839168,-769.37,0.00027397,2]
[391273882,1760461839178,-769.37,0.00027397,2]
[391273884,1760461839188,-769.37,0.00027397,2]
[391273886,1760461839200,-769.37,0.00027397,2]
[391273889,1760461839211,-769.37,0.00027397,2]
[391273891,1760461839221,-769.37,0.00027397,2]
[391273893,1760461839230,-769.37,0.00027397,2]
[391273895,1760461839240,-769.37,0.00027397,2]
[391273897,1760461839250,-769.37,0.00027397,2]
[391273899,1760461839260,-769.37,0.00027397,2]
[391273901,1760461839269,-769.37,0.00027397,2]
[391273903,1760461839279,-769.48,0.00027397,2]
[391273905,1760461839291,-6530.23,0.00027397,4]
[391273907,1760461839301,-1000.0,0.00027397,2]
[391273909,1760461839310,-1000.0,0.00027397,2]
[391273911,1760461839320,-908.85745182,0.00027397,2]
[391273913,1760461839330,-500.0,0.00027397,2]
[391273915,1760461839340,-500.0,0.00027397,2]
[391273917,1760461839350,-500.0,0.00027397,2]
[391273918,1760461839360,-500.0,0.00027397,2]
[391273921,1760461839371,-500.0,0.00027397,2]
[391273924,1760461839380,-500.0,0.00027397,2]
[391273927,1760461839391,-500.0,0.00027397,2]
[391273929,1760461839400,-500.0,0.00027397,2]
[391273931,1760461839411,-500.0,0.00027397,2]
[391273933,1760461839420,-500.01,0.00027397,2]
[391273935,1760461839430,-6435.51,0.000274,2]
[391273937,1760461839440,-3971.11,0.000274,2]
[391273939,1760461839449,-516.14403739,0.00027577,2]
[391273941,1760461839459,-1451.14558009,0.00027844,2]
[391273943,1760461839469,-1958.0,0.00027891,7]
[391273945,1760461839478,-1451.14558009,0.00028052,2]
[391273947,1760461839488,-18067.9,0.000281,7]
[391273949,1760461839497,-800.0,0.00028122,2]
[391273951,1760461839507,-800.0,0.00028129,2]
[391273953,1760461839516,-165.254606,0.00028138,2]
[391273955,1760461839526,-169.262279,0.00028138,2]
[391273957,1760461839535,-152.02672942,0.0002814,5]
[391273959,1760461839544,-541.11874887,0.00028177,2]
[391273960,1760461839554,-1451.14558009,0.00028306,2]
[391273961,1760461839564,-12974.22,0.00028317,2]
[391273962,1760461839572,-160.0,0.00028436,4]
[391273963,1760461839582,-411.0,0.00028451,2]
[391273964,1760461839591,-418.168,0.00028451,2]
[391273965,1760461839600,-298.0923344,0.00028493,30]
[391273966,1760461839609,-153.0,0.00028493,30]
[391273967,1760461839618,-189.8496045,0.00028493,30]
[391273968,1760461839627,-298.0923344,0.00028493,30]
[391273969,1760461839637,-162.9892445,0.00028493,30]
[391273970,1760461839646,-153.0,0.00028493,30]
[391273971,1760461839655,-298.0923344,0.00028493,30]
[391273972,1760461839665,-189.8496045,0.00028493,30]
[391273973,1760461839674,-162.9892445,0.00028493,30]
[391273974,1760461839683,-153.0,0.00028493,30]
[391273975,1760461839693,-189.8496045,0.00028493,30]
[391273976,1760461839702,-162.9892445,0.00028493,30]
[391273977,1760461839712,-306.0,0.00028493,30]
[391273978,1760461839721,-189.8496045,0.00028493,30]
[391273979,1760461839730,-1713.88124564,0.00028499,2]
[391273980,1760461839739,-1400.0,0.00028517,7]
[391273981,1760461839748,-1486.0,0.00028553,2]
[391273982,1760461839757,-1451.14558009,0.00028576,2]
[391273983,1760461839766,-500.0,0.00028585,7]
[391273984,1760461839775,-800.0,0.00028588,2]
[391273985,1760461839784,-5252.99055535,0.00028612,2]
[391273986,1760461839794,-1000.0,0.00028639,30]
[391273987,1760461839803,-244.0,0.00028639,30]
[391273988,1760461839812,-162.380719,0.0002864,2]
[391273989,1760461839821,-250.0,0.0002864,2]
[391273990,1760461839831,-151.0,0.0002864,2]
[391273991,1760461839840,-250.0,0.0002864,2]
[391273992,1760461839849,-250.0,0.0002864,2]
[391273993,1760461839858,-250.0,0.0002864,2]
[391273994,1760461839867,-1000.0,0.0002864,2]
[391273995,1760461839880,-250.0,0.0002864,2]
[391273996,1760461839889,-1000.0,0.0002864,2]
[391273997,1760461839899,-250.0,0.0002864,2]
[391273998,1760461839908,-1000.0,0.0002864,2]
[391273999,1760461839917,-18603.8837,0.0002864,2]
[391274000,1760461839926,-250.0,0.0002864,2]
[391274001,1760461839935,-1000.0,0.0002864,2]
[391274002,1760461839944,-250.0,0.0002864,2]
[391274003,1760461839953,-1000.0,0.0002864,2]
[391274004,1760461839962,-250.0,0.0002864,2]
[391274005,1760461839971,-1000.0,0.0002864,2]
[391274006,1760461839980,-250.0,0.0002864,2]
[391274007,1760461839989,-763.35183813,0.0002864,2]
[391274008,1760461839998,-250.0,0.0002864,2]
[391274009,1760461840007,-250.0,0.0002864,2]
[391274010,1760461840016,-151.0,0.0002864,2]
[391274011,1760461840025,-250.0,0.0002864,2]
[391274012,1760461840034,-151.0,0.0002864,2]
[391274013,1760461840043,-151.0,0.0002864,2]
[391274014,1760461840052,-250.0,0.0002864,2]
[391274015,1760461840061,-151.0,0.0002864,2]
[391274016,1760461840070,-212.33504386,0.0002864,2]
[391274017,1760461840079,-250.0,0.0002864,2]
[391274018,1760461840088,-151.0,0.0002864,2]
[391274019,1760461840097,-250.0,0.0002864,2]
[391274020,1760461840106,-151.0,0.0002864,2]
[391274021,1760461840116,-250.0,0.0002864,2]
[391274022,1760461840129,-151.0,0.0002864,2]
[391274023,1760461840138,-250.0,0.0002864,2]
[391274024,1760461840147,-151.0,0.0002864,2]
[391274025,1760461840156,-248.04596635,0.0002864,2]
[391274026,1760461840166,-162.38071901,0.0002864,2]
[391274027,1760461840175,-350.83161611,0.00028645,2]
[391274028,1760461840184,-800.0,0.00028647,2]
[391274029,1760461840194,-1873349.67068602,0.0002871,4]
[391274030,1760461840239,-20826.04797227,0.0002871,4]
[391274798,1760462700723,2013.0,0.000284,120]
[391274800,1760462754440,500.0,0.00030457,60]
[391274801,1760462760206,500.0,0.00030457,60]
[391274802,1760462760539,500.0,0.00030457,60]
[391274803,1760462760830,500.0,0.00030457,60]
[391274804,1760462761066,500.0,0.00030457,60]
[391274805,1760462761356,388.31405203,0.00030457,60]
[391274809,1760462846225,500.0,0.00030457,60]
[391274810,1760462846458,500.0,0.00030457,60]
[391274811,1760462846693,500.0,0.00030457,60]
[391274812,1760462846967,500.0,0.00030457,60]
[391274813,1760462847195,500.0,0.00030457,60]
[391274814,1760462847484,500.0,0.00030457,60]
[391274815,1760462847754,500.0,0.00030457,60]
[391274816,1760462847982,500.0,0.00030457,60]
[391274817,1760462848229,500.0,0.00030457,60]
[391274818,1760462848466,500.0,0.00030457,60]
[391274819,1760462848711,500.0,0.00030457,60]
[391274820,1760462848939,500.0,0.00030457,60]
[391274821,1760462849204,500.0,0.00030457,60]
[391274822,1760462849441,500.0,0.00030457,60]
[391274824,1760462849699,500.0,0.00030457,60]
[391274825,1760462849950,500.0,0.00030457,60]
[391274826,1760462850215,500.0,0.00030457,60]
[391274827,1760462850461,500.0,0.00030457,60]
[391274828,1760462850701,500.0,0.00030457,60]
[391274829,1760462850927,500.0,0.00030457,60]
[391274830,1760462851174,406.54532494,0.00030457,60]
[391274831,1760462908960,155.0,0.00018,30]
[391274832,1760462917035,603.999999,0.0002,120]
[391274833,1760462917403,2391.295775,0.00030487,120]
[391274870,1760463031945,-217.58697938,0.00019554,2]
[391274871,1760463031955,-158.0,0.00019899,2]
[391274872,1760463031964,-300.0,0.00019899,2]
[391274873,1760463031974,-26.2826347,0.000199,2]
[391274892,1760463038025,-1004.38909799,0.000199,2]
[391274894,1760463038037,-1619.38572393,0.000199,2]
[391274895,1760463038049,-17638.25820985,0.000199,2]
[391274896,1760463038059,-21792.41758944,0.0002,2]
[391274897,1760463038070,-725.04153602,0.0002,2]
[391274898,1760463038080,-200.28383773,0.0002,2]
[391274899,1760463038089,-250.22502629,0.00020154,2]
[391274900,1760463038099,-300.0,0.00020297,2]
[391274901,1760463038109,-300.0,0.00020297,2]
[391274902,1760463038118,-300.0,0.00020297,2]
[391274903,1760463038128,-300.0,0.00020297,2]
[391274904,1760463038137,-300.0,0.00020297,2]
[391274905,1760463038147,-300.0,0.00020297,2]
[391274906,1760463038159,-300.0,0.00020297,2]
[391274907,1760463038168,-300.0,0.00020297,2]
[391274908,1760463038178,-300.0,0.00020297,2]
[391274909,1760463038188,-300.0,0.00020297,2]
[391274910,1760463038198,-300.0,0.00020297,2]
[391274911,1760463038207,-300.0,0.00020297,2]
[391274912,1760463038218,-300.0,0.00020297,2]
[391274913,1760463038227,-300.0,0.00020297,2]
[391274914,1760463038237,-300.0,0.00020297,2]
[391274915,1760463038247,-282.86307319,0.00020754,2]
[391274916,1760463038256,-315.5011201,0.00021354,2]
[391274917,1760463038266,-420.0,0.0002167,2]
[391274918,1760463038275,-348.13916701,0.00021954,2]
[391274919,1760463038285,-380.77721392,0.00022554,2]
[391274920,1760463038295,-244.0,0.00022822,8]
[391274921,1760463038305,-413.41526082,0.00023154,2]
[391274922,1760463038315,-587.0,0.00023599,2]
[391274923,1760463038324,-446.05330773,0.00023754,2]
[391274924,1760463038334,-3268.43,0.0002399,10]
[391274925,1760463038343,-2723.7,0.0002399,10]
[391274926,1760463038352,-24999.97,0.00024,2]
[391274927,1760463038361,-110662.9556654,0.00024,60]
[391274928,1760463038370,-1036.12523255,0.00024,30]
[391274929,1760463038381,-500.0,0.00024009,2]
[391274930,1760463038391,-600.0,0.0002407,20]
[391274931,1760463038400,-478.69135464,0.00024354,2]
[391274932,1760463038412,-417.15472785,0.00024368,2]
[391274933,1760463038425,-2089.07574424,0.00024368,2]
[391274934,1760463038435,-160.0,0.00024368,2]
[391274935,1760463038445,-402.43064913,0.00024368,2]
[391274936,1760463038455,-515.31887245,0.000244,2]
[391274937,1760463038465,-160.0,0.000244,2]
[391274938,1760463038475,-177.90835515,0.000244,2]
[391274939,1760463038484,-25467.48,0.000244,7]
[391274940,1760463038494,-2089.07574424,0.000244,7]
[391274941,1760463038503,-515.31887245,0.000246,2]
[391274942,1760463038513,-177.90835515,0.000246,2]
[391274943,1760463038522,-515.31887245,0.000249,2]
[391274944,1760463038532,-177.90835515,0.000249,2]
[391274945,1760463038541,-942.46645142,0.000249,2]
[391274946,1760463038551,-511.32940154,0.00024954,2]
[391274947,1760463038560,-100000.0,0.0002499,2]
[391274948,1760463038569,-417.15472785,0.00025,10]
[391274949,1760463038579,-64498.98359881,0.00025,30]
[391274950,1760463038588,-300.0,0.00025,30]
[391274951,1760463038597,-603.99999903,0.00025,5]
[391274952,1760463038606,-2089.07574424,0.00025,30]
[391274953,1760463038616,-1021110.5111559,0.00025,7]
[391274954,1760463038624,-515.31887245,0.000251,2]
[391274955,1760463038634,-551.763619,0.00025232,2]
[391274956,1760463038643,-515.31887245,0.000254,2]
[391274957,1760463038652,-543.96744845,0.00025554,2]
[391274958,1760463038662,-823.0,0.00025699,2]
[391274959,1760463038672,-2089.07574424,0.000258,30]
[391274960,1760463038682,-423.03,0.00025947,2]
[391274961,1760463038691,-19900.0,0.00026,2]
[391274962,1760463038700,-576.60549536,0.00026154,2]
[391274963,1760463038710,-160.0,0.00026206,2]
[391274964,1760463038720,-1380.90304782,0.00026468,2]
[391274965,1760463038729,-720.0,0.00026477,30]
[391274966,1760463038739,-151.0,0.0002651,7]
[391274967,1760463038748,-25467.48,0.000266,7]
[391274968,1760463038758,-2089.07574424,0.000266,7]
[391274969,1760463038768,-609.24354227,0.00026754,2]
[391274970,1760463038778,-260.0,0.00026754,2]
[391274971,1760463038788,-1380.90304782,0.00026762,2]
[391274972,1760463038797,-177.165,0.00026849,14]
[391274973,1760463038808,-1380.90304782,0.00026854,2]
[391274974,1760463038818,-151.0,0.0002696,7]
[391274975,1760463038827,-263.49658,0.0002705,2]
[391274976,1760463038837,-281.200344,0.0002705,2]
[391274977,1760463038847,-192.93927548,0.00027111,2]
[391274978,1760463038857,-846.05,0.00027182,2]
[391274979,1760463038867,-360.0,0.00027302,2]
[391274980,1760463038876,-1380.90304782,0.00027348,2]
[391274981,1760463038885,-641.88158917,0.00027354,2]
[391274982,1760463038895,-416.33603265,0.0002739,2]
[391274983,1760463038904,-199.0,0.00027396,7]
[391274984,1760463038918,-500.0,0.00027397,2]
[391274985,1760463038928,-500.0,0.00027397,2]
[391274986,1760463038938,-500.0,0.00027397,2]
[391274987,1760463038949,-427.48221293,0.00027397,2]
[391274988,1760463038959,-1380.90304782,0.00027448,2]
[391274989,1760463038970,-7128.49809954,0.000275,60]
[391274990,1760463038980,-331.66274381,0.000275,2]
[391274991,1760463038990,-1702.800792,0.000276,2]
[391274992,1760463038999,-218.62329348,0.0002766,2]
[391274993,1760463039009,-64369.1585457,0.00027661,2]
[391274994,1760463039018,-342.77624913,0.00027661,2]
[391274995,1760463039027,-162.9892445,0.00027671,30]
[391274996,1760463039036,-588.8145586,0.00027671,30]